[Event "Live Chess"]
[Site "Chess.com"]
[Date "2023.05.21"]
[Round "-"]
[White "OleksiyJr1"]
[Black "raminguy"]
[Result "0-1"]
[WhiteElo "1029"]
[BlackElo "1955"]
[TimeControl "300"]
[EndTime "5:29:21 PDT"]
[Termination "raminguy won by resignation"]

1. e4 {[%clk 0:04:37.2]} 1... e5 {[%clk 0:04:58.8]} 2. Nf3 {[%clk 0:04:35.7]}
2... Nc6 {[%clk 0:04:58.2]} 3. Bc4 {[%clk 0:04:34.7]} 3... Bc5 {[%clk
0:04:55.9]} 4. Nc3 {[%clk 0:04:34.1]} 4... Nf6 {[%clk 0:04:51.2]} 5. d3 {[%clk
0:04:30.7]} 5... h6 {[%clk 0:04:49.8]} 6. O-O {[%clk 0:04:29.2]} 6... O-O {[%clk
0:04:46.9]} 7. h3 {[%clk 0:04:28.8]} 7... a5 {[%clk 0:04:44.3]} 8. a4 {[%clk
0:04:26.8]} 8... d6 {[%clk 0:04:43]} 9. b3 {[%clk 0:04:23.7]} 9... Bb4 {[%clk
0:04:30.2]} 10. Bb2 {[%clk 0:04:18.9]} 10... Ne7 {[%clk 0:04:15.7]} 11. Qd2
{[%clk 0:04:13.5]} 11... c6 {[%clk 0:04:08.9]} 12. d4 {[%clk 0:04:06.8]} 12...
Nxe4 {[%clk 0:04:05.8]} 13. Qe3 {[%clk 0:04:02.6]} 13... Nxc3 {[%clk 0:03:59.4]}
14. Bxc3 {[%clk 0:04:02.5]} 14... Bxc3 {[%clk 0:03:58.3]} 15. Qxc3 {[%clk
0:04:01.5]} 15... e4 {[%clk 0:03:56.3]} 16. Nd2 {[%clk 0:03:59.5]} 16... d5
{[%clk 0:03:55]} 17. Be2 {[%clk 0:03:57.3]} 17... Qb6 {[%clk 0:03:43.2]} 18.
Rfe1 {[%clk 0:03:52.4]} 18... Nf5 {[%clk 0:03:41.5]} 19. Bg4 {[%clk 0:03:47.4]}
19... Nxd4 {[%clk 0:03:38.6]} 20. Bxc8 {[%clk 0:03:41.6]} 20... Raxc8 {[%clk
0:03:38.5]} 21. f3 {[%clk 0:03:26.4]} 21... exf3 {[%clk 0:03:36.1]} 22. Nxf3
{[%clk 0:03:21.6]} 22... Nxf3+ {[%clk 0:03:32.7]} 23. Kf1 {[%clk 0:03:15.6]}
23... Qg1+ {[%clk 0:03:21.8]} 24. Ke2 {[%clk 0:03:04.8]} 24... Nxe1 {[%clk
0:03:20]} 25. Rxe1 {[%clk 0:03:03.4]} 25... Rce8+ {[%clk 0:03:18.1]} 26. Kd1
{[%clk 0:03:02.1]} 26... Rxe1+ {[%clk 0:03:15.9]} 27. Qxe1 {[%clk 0:03:02]}
27... Qxe1+ {[%clk 0:03:14.2]} 28. Kxe1 {[%clk 0:03:01.9]} 28... Re8+ {[%clk
0:03:13.3]} 29. Kd2 {[%clk 0:03:01.8]} 29... Re4 {[%clk 0:03:11.9]} 30. Kd3
{[%clk 0:03:01.7]} 30... f5 {[%clk 0:03:10.1]} 0-1

[Event "Live Chess"]
[Site "Chess.com"]
[Date "2023.05.21"]
[Round "-"]
[White "Chesscoach_Golichenko"]
[Black "LiamClery2020"]
[Result "1-0"]
[WhiteElo "2613"]
[BlackElo "1988"]
[TimeControl "300"]
[EndTime "5:29:40 PDT"]
[Termination "Chesscoach_Golichenko won by resignation"]

1. d4 {[%clk 0:04:56.6]} 1... Nf6 {[%clk 0:04:57.8]} 2. c4 {[%clk 0:04:55.1]}
2... g6 {[%clk 0:04:56.1]} 3. Nc3 {[%clk 0:04:52.8]} 3... d5 {[%clk 0:04:55.4]}
4. cxd5 {[%clk 0:04:51.6]} 4... Nxd5 {[%clk 0:04:55.3]} 5. e4 {[%clk 0:04:50.8]}
5... Nxc3 {[%clk 0:04:51.2]} 6. bxc3 {[%clk 0:04:50.7]} 6... Bg7 {[%clk
0:04:50.8]} 7. Bc4 {[%clk 0:04:49.6]} 7... c5 {[%clk 0:04:49.8]} 8. Ne2 {[%clk
0:04:48]} 8... cxd4 {[%clk 0:04:44.7]} 9. cxd4 {[%clk 0:04:47.9]} 9... Nc6
{[%clk 0:04:41.8]} 10. Be3 {[%clk 0:04:46.1]} 10... Qa5+ {[%clk 0:04:40.1]} 11.
Qd2 {[%clk 0:04:40]} 11... Qxd2+ {[%clk 0:04:38.8]} 12. Kxd2 {[%clk 0:04:39.3]}
12... O-O {[%clk 0:04:33.3]} 13. Rhd1 {[%clk 0:04:37.2]} 13... Rd8 {[%clk
0:04:32.4]} 14. Ke1 {[%clk 0:04:33.9]} 14... Bg4 {[%clk 0:04:30.8]} 15. f3
{[%clk 0:04:32.4]} 15... Bd7 {[%clk 0:04:30]} 16. Rac1 {[%clk 0:04:29.8]} 16...
Rac8 {[%clk 0:04:28.8]} 17. Bb3 {[%clk 0:04:21.5]} 17... Na5 {[%clk 0:04:25.7]}
18. d5 {[%clk 0:04:20]} 18... Nxb3 {[%clk 0:04:23.8]} 19. axb3 {[%clk
0:04:19.9]} 19... a6 {[%clk 0:04:21.3]} 20. Bb6 {[%clk 0:04:14.9]} 20... Rxc1
{[%clk 0:04:19.3]} 21. Rxc1 {[%clk 0:04:11]} 21... Rc8 {[%clk 0:04:18.5]} 22.
Rxc8+ {[%clk 0:04:10]} 22... Bxc8 {[%clk 0:04:18.4]} 23. Bd4 {[%clk 0:04:09.5]}
23... Bxd4 {[%clk 0:04:16.4]} 24. Nxd4 {[%clk 0:04:09.4]} 24... Kf8 {[%clk
0:04:16]} 25. Kd2 {[%clk 0:04:07.6]} 25... e5 {[%clk 0:04:13.7]} 26. dxe6 {[%clk
0:04:04.1]} 26... Bxe6 {[%clk 0:04:11.8]} 27. Kc3 {[%clk 0:03:37.4]} 27... Ke7
{[%clk 0:04:05.9]} 28. g4 {[%clk 0:03:35]} 28... Kd6 {[%clk 0:04:03.8]} 29. g5
{[%clk 0:03:33.1]} 29... Bh3 {[%clk 0:04:00.3]} 30. f4 {[%clk 0:03:31.3]} 30...
Bg2 {[%clk 0:03:54]} 31. Kd3 {[%clk 0:03:19.9]} 31... Bh1 {[%clk 0:03:45.8]} 32.
b4 {[%clk 0:03:17.1]} 32... Bg2 {[%clk 0:03:43.5]} 33. Nb3 {[%clk 0:03:10.8]}
33... Bf1+ {[%clk 0:03:38.6]} 34. Kd4 {[%clk 0:03:09.5]} 34... b6 {[%clk
0:03:26.2]} 35. Nd2 {[%clk 0:03:02.8]} 35... Be2 {[%clk 0:03:25.3]} 36. e5+
{[%clk 0:02:58.7]} 36... Kc6 {[%clk 0:03:18.8]} 37. Ne4 {[%clk 0:02:57.8]} 37...
a5 {[%clk 0:03:14]} 38. bxa5 {[%clk 0:02:51.4]} 38... bxa5 {[%clk 0:03:13]} 39.
Nd6 {[%clk 0:02:50.4]} 39... a4 {[%clk 0:03:04.4]} 40. Nxf7 {[%clk 0:02:47.9]}
40... a3 {[%clk 0:03:03.1]} 41. Kc3 {[%clk 0:02:43.3]} 41... Kd7 {[%clk
0:02:47.3]} 42. Nd6 {[%clk 0:02:23.8]} 42... Ke6 {[%clk 0:02:39]} 43. Kb3 {[%clk
0:02:21.2]} 1-0

[Event "Live Chess"]
[Site "Chess.com"]
[Date "2023.05.21"]
[Round "-"]
[White "KeithArkell"]
[Black "JoshMcK"]
[Result "1-0"]
[WhiteElo "2479"]
[BlackElo "1573"]
[TimeControl "300"]
[EndTime "5:29:44 PDT"]
[Termination "KeithArkell won by resignation"]

1. d4 {[%clk 0:04:57.2]} 1... d5 {[%clk 0:04:58.2]} 2. Nf3 {[%clk 0:04:55.9]}
2... Nf6 {[%clk 0:04:55.5]} 3. c4 {[%clk 0:04:55.1]} 3... e6 {[%clk 0:04:54.4]}
4. cxd5 {[%clk 0:04:54.3]} 4... exd5 {[%clk 0:04:53.3]} 5. Nc3 {[%clk
0:04:53.6]} 5... a6 {[%clk 0:04:46.7]} 6. Bg5 {[%clk 0:04:51.8]} 6... Be6 {[%clk
0:04:44]} 7. e3 {[%clk 0:04:49.8]} 7... h6 {[%clk 0:04:42.9]} 8. Bh4 {[%clk
0:04:48.3]} 8... Be7 {[%clk 0:04:42.2]} 9. Bd3 {[%clk 0:04:47.3]} 9... O-O
{[%clk 0:04:40.7]} 10. Qc2 {[%clk 0:04:46.5]} 10... Re8 {[%clk 0:04:09.2]} 11.
O-O {[%clk 0:04:44.1]} 11... c6 {[%clk 0:03:58.8]} 12. Bf5 {[%clk 0:04:40.9]}
12... Bxf5 {[%clk 0:03:53.5]} 13. Qxf5 {[%clk 0:04:39.2]} 13... Qd7 {[%clk
0:03:46.5]} 14. Qxd7 {[%clk 0:04:38.3]} 14... Nbxd7 {[%clk 0:03:46.3]} 15. Rab1
{[%clk 0:04:36.7]} 15... Ne4 {[%clk 0:03:40.5]} 16. Bxe7 {[%clk 0:04:34.8]}
16... Nxc3 {[%clk 0:03:38.2]} 17. bxc3 {[%clk 0:04:33.5]} 17... Rxe7 {[%clk
0:03:36.9]} 18. Rxb7 {[%clk 0:04:32.3]} 18... Kf8 {[%clk 0:03:25.6]} 19. Rfb1
{[%clk 0:04:29.7]} 19... c5 {[%clk 0:03:18.7]} 20. g4 {[%clk 0:04:23]} 20... Nf6
{[%clk 0:03:12.4]} 21. Rxe7 {[%clk 0:04:19.2]} 21... Kxe7 {[%clk 0:03:11.1]} 22.
Rb7+ {[%clk 0:04:18]} 22... Kf8 {[%clk 0:03:10.3]} 23. h3 {[%clk 0:04:16.1]}
23... Ne4 {[%clk 0:03:01.4]} 24. Ne5 {[%clk 0:04:14.8]} 24... f6 {[%clk
0:02:54.7]} 25. Ng6+ {[%clk 0:04:13.8]} 25... Kg8 {[%clk 0:02:52.7]} 26. Ne7+
{[%clk 0:04:12.5]} 26... Kh7 {[%clk 0:02:47.9]} 27. Nxd5 {[%clk 0:04:11.4]}
27... Nxc3 {[%clk 0:02:43.8]} 28. Nxc3 {[%clk 0:04:10.1]} 1-0

[Event "Live Chess"]
[Site "Chess.com"]
[Date "2023.05.21"]
[Round "-"]
[White "ElectricFalcon"]
[Black "luckywookie"]
[Result "0-1"]
[WhiteElo "1068"]
[BlackElo "797"]
[TimeControl "300"]
[EndTime "5:29:59 PDT"]
[Termination "luckywookie won by resignation"]

1. d4 {[%clk 0:04:56.4]} 1... c6 {[%clk 0:04:58.8]} 2. c4 {[%clk 0:04:56.3]}
2... d5 {[%clk 0:04:57.8]} 3. Nf3 {[%clk 0:04:56.2]} 3... Nf6 {[%clk 0:04:56.5]}
4. cxd5 {[%clk 0:04:54.9]} 4... Nxd5 {[%clk 0:04:50.8]} 5. e4 {[%clk 0:04:50.4]}
5... Nf6 {[%clk 0:04:47.5]} 6. Nc3 {[%clk 0:04:08.5]} 6... Bg4 {[%clk
0:04:42.8]} 7. Be2 {[%clk 0:04:06.5]} 7... e6 {[%clk 0:04:40.4]} 8. e5 {[%clk
0:03:56.7]} 8... Nd5 {[%clk 0:04:35.5]} 9. Nxd5 {[%clk 0:03:55.1]} 9... cxd5
{[%clk 0:04:32.4]} 10. Bg5 {[%clk 0:03:36.5]} 10... Qb6 {[%clk 0:04:29.9]} 11.
O-O {[%clk 0:03:33.4]} 11... Nc6 {[%clk 0:04:24.4]} 12. a4 {[%clk 0:03:28.3]}
12... Bb4 {[%clk 0:03:25.6]} 13. h3 {[%clk 0:02:54.7]} 13... Bf5 {[%clk
0:03:21.7]} 14. Nh4 {[%clk 0:02:47.1]} 14... Nxd4 {[%clk 0:02:50.7]} 15. Nxf5
{[%clk 0:02:41.6]} 15... Nxf5 {[%clk 0:02:49.1]} 16. Bb5+ {[%clk 0:02:40.2]}
16... Kf8 {[%clk 0:02:33.3]} 17. Qb3 {[%clk 0:01:54.1]} 17... a5 {[%clk
0:02:19.5]} 18. g4 {[%clk 0:01:39.6]} 18... h6 {[%clk 0:02:17.5]} 19. gxf5
{[%clk 0:01:36.2]} 19... hxg5 {[%clk 0:02:16.3]} 20. f6 {[%clk 0:01:34.6]} 20...
Bc5 {[%clk 0:01:58.7]} 21. fxg7+ {[%clk 0:01:32.2]} 21... Kxg7 {[%clk 0:01:57]}
22. Qg3 {[%clk 0:01:28.8]} 22... Kg6 {[%clk 0:01:38.8]} 23. Bd3+ {[%clk
0:01:21.5]} 23... f5 {[%clk 0:01:33.5]} 24. Rae1 {[%clk 0:01:14.5]} 24... g4
{[%clk 0:01:16.9]} 25. Qxg4+ {[%clk 0:01:11.2]} 25... Kf7 {[%clk 0:01:12.3]} 26.
Qg5 {[%clk 0:01:07.2]} 26... Rag8 {[%clk 0:01:10.3]} 27. Qxg8+ {[%clk 0:01:01]}
27... Rxg8+ {[%clk 0:01:08.8]} 28. Kh2 {[%clk 0:01:00.9]} 28... Bd4 {[%clk
0:00:57.6]} 29. Be2 {[%clk 0:00:52.1]} 29... Bxe5+ {[%clk 0:00:56]} 30. Kh1
{[%clk 0:00:50.4]} 30... Qd4 {[%clk 0:00:45.9]} 31. Bh5+ {[%clk 0:00:48.1]}
31... Kf6 {[%clk 0:00:39.5]} 32. Rg1 {[%clk 0:00:46.1]} 32... Qe4+ {[%clk
0:00:35.2]} 0-1

[Event "Live Chess"]
[Site "Chess.com"]
[Date "2023.05.21"]
[Round "-"]
[White "HoarseyHorsey"]
[Black "GwaryTek"]
[Result "0-1"]
[WhiteElo "1484"]
[BlackElo "2063"]
[TimeControl "300"]
[EndTime "5:30:23 PDT"]
[Termination "GwaryTek won by resignation"]

1. d4 {[%clk 0:04:58]} 1... c5 {[%clk 0:04:58.6]} 2. d5 {[%clk 0:04:56.7]} 2...
e5 {[%clk 0:04:55.8]} 3. dxe6 {[%clk 0:04:53.3]} 3... fxe6 {[%clk 0:04:53.9]} 4.
c4 {[%clk 0:04:52.5]} 4... Nf6 {[%clk 0:04:53.2]} 5. Nc3 {[%clk 0:04:51.6]} 5...
Be7 {[%clk 0:04:51.5]} 6. Bf4 {[%clk 0:04:50.4]} 6... O-O {[%clk 0:04:50.7]} 7.
e3 {[%clk 0:04:49.7]} 7... Nc6 {[%clk 0:04:50.2]} 8. Bd3 {[%clk 0:04:42.1]} 8...
d5 {[%clk 0:04:48.3]} 9. cxd5 {[%clk 0:04:40.8]} 9... exd5 {[%clk 0:04:48.2]}
10. Nf3 {[%clk 0:04:37.6]} 10... d4 {[%clk 0:04:46.6]} 11. exd4 {[%clk
0:04:36.4]} 11... cxd4 {[%clk 0:04:46.5]} 12. Ne2 {[%clk 0:04:28.8]} 12... Nd5
{[%clk 0:04:43.1]} 13. Bg3 {[%clk 0:04:23.3]} 13... Qa5+ {[%clk 0:04:14.8]} 14.
Qd2 {[%clk 0:04:16.8]} 14... Bb4 {[%clk 0:04:13]} 0-1

[Event "Live Chess"]
[Site "Chess.com"]
[Date "2023.05.21"]
[Round "-"]
[White "Biranidun"]
[Black "sanjesh_ananda"]
[Result "1-0"]
[WhiteElo "2523"]
[BlackElo "1236"]
[TimeControl "300"]
[EndTime "5:30:26 PDT"]
[Termination "Biranidun won by resignation"]

1. e4 {[%clk 0:04:59]} 1... e5 {[%clk 0:04:56.6]} 2. Nf3 {[%clk 0:04:58.1]} 2...
Nc6 {[%clk 0:04:55.5]} 3. Bc4 {[%clk 0:04:57.5]} 3... Nf6 {[%clk 0:04:51.9]} 4.
Ng5 {[%clk 0:04:56.7]} 4... d5 {[%clk 0:04:50.2]} 5. exd5 {[%clk 0:04:56.6]}
5... Na5 {[%clk 0:04:47.5]} 6. Bb5+ {[%clk 0:04:55.9]} 6... c6 {[%clk
0:04:46.1]} 7. dxc6 {[%clk 0:04:55.8]} 7... Nxc6 {[%clk 0:04:44.7]} 8. Nc3
{[%clk 0:04:53.3]} 8... Bb4 {[%clk 0:04:32.1]} 9. O-O {[%clk 0:04:51.6]} 9...
O-O {[%clk 0:04:23.8]} 10. d3 {[%clk 0:04:50.6]} 10... Qb6 {[%clk 0:04:10.8]}
11. Bc4 {[%clk 0:04:45.4]} 11... h6 {[%clk 0:04:07.3]} 12. Be3 {[%clk
0:04:42.8]} 12... Bc5 {[%clk 0:03:54.5]} 13. Na4 {[%clk 0:04:40.8]} 13... Qd8
{[%clk 0:03:35.1]} 14. Nxf7 {[%clk 0:04:33.3]} 14... Qe7 {[%clk 0:03:18]} 15.
Bxc5 {[%clk 0:04:25]} 15... Qc7 {[%clk 0:03:03.4]} 16. Nxh6+ {[%clk 0:04:18.4]}
1-0

[Event "Live Chess"]
[Site "Chess.com"]
[Date "2023.05.21"]
[Round "-"]
[White "EdenHazard8"]
[Black "hturner40"]
[Result "0-1"]
[WhiteElo "1936"]
[BlackElo "1790"]
[TimeControl "300"]
[EndTime "5:30:29 PDT"]
[Termination "hturner40 won by resignation"]

1. e4 {[%clk 0:04:59.2]} 1... Nc6 {[%clk 0:04:55.5]} 2. d4 {[%clk 0:04:57.2]}
2... e5 {[%clk 0:04:54.5]} 3. d5 {[%clk 0:04:55]} 3... Nce7 {[%clk 0:04:53.5]}
4. Nf3 {[%clk 0:04:53.9]} 4... Ng6 {[%clk 0:04:52.3]} 5. h4 {[%clk 0:04:53.4]}
5... h5 {[%clk 0:04:47.2]} 6. Bg5 {[%clk 0:04:50.6]} 6... Be7 {[%clk 0:04:42.8]}
7. c4 {[%clk 0:04:46.7]} 7... Nf6 {[%clk 0:04:38.2]} 8. Nc3 {[%clk 0:04:44.4]}
8... d6 {[%clk 0:04:30.1]} 9. Be2 {[%clk 0:04:36.6]} 9... Bg4 {[%clk 0:04:28]}
10. Qb3 {[%clk 0:04:27.7]} 10... b6 {[%clk 0:04:21]} 11. O-O-O {[%clk
0:04:14.2]} 11... Nd7 {[%clk 0:04:18.9]} 12. Bxe7 {[%clk 0:04:08]} 12... Kxe7
{[%clk 0:04:08.3]} 13. Nb5 {[%clk 0:04:06.4]} 13... Nc5 {[%clk 0:04:02.3]} 14.
Qe3 {[%clk 0:04:02.7]} 14... a5 {[%clk 0:03:54.2]} 15. Qg5+ {[%clk 0:03:56.3]}
15... Ke8 {[%clk 0:03:45.9]} 16. Qxd8+ {[%clk 0:03:56.2]} 16... Kxd8 {[%clk
0:03:44.2]} 17. Bd3 {[%clk 0:03:28]} 17... Nf4 {[%clk 0:03:40.3]} 18. Ng5 {[%clk
0:03:22.4]} 18... Nfxd3+ {[%clk 0:03:17.1]} 19. Rxd3 {[%clk 0:03:15.3]} 19...
Nxd3+ {[%clk 0:03:15.8]} 20. Kd2 {[%clk 0:03:14.9]} 20... Nxf2 {[%clk
0:03:13.7]} 21. Rf1 {[%clk 0:03:11.9]} 21... Nxe4+ {[%clk 0:03:11.5]} 22. Nxe4
{[%clk 0:03:10.2]} 22... f6 {[%clk 0:03:03.5]} 23. a4 {[%clk 0:02:59.9]} 23...
Kd7 {[%clk 0:02:52.7]} 24. Ng3 {[%clk 0:02:51.5]} 24... Rhf8 {[%clk 0:02:43.8]}
25. Nf5 {[%clk 0:02:48]} 25... Bxf5 {[%clk 0:02:40.9]} 26. Rxf5 {[%clk
0:02:47.9]} 26... g6 {[%clk 0:02:38.9]} 27. Rf2 {[%clk 0:02:44.7]} 27... f5
{[%clk 0:02:35.7]} 28. Nc3 {[%clk 0:02:35.7]} 28... Rae8 {[%clk 0:02:31.4]} 29.
Ne2 {[%clk 0:02:33.7]} 29... f4 {[%clk 0:02:12.1]} 30. Nc3 {[%clk 0:02:29.8]}
30... e4 {[%clk 0:02:10.6]} 31. Re2 {[%clk 0:02:27.4]} 31... f3 {[%clk
0:02:03.6]} 32. gxf3 {[%clk 0:02:24.8]} 32... exf3 {[%clk 0:02:01.5]} 33. Rf2
{[%clk 0:02:18.3]} 33... Re5 {[%clk 0:01:43]} 34. b3 {[%clk 0:02:12.5]} 34...
Ref5 {[%clk 0:01:41.1]} 35. Nd1 {[%clk 0:02:10.5]} 35... Rf4 {[%clk 0:01:39.6]}
36. Ke3 {[%clk 0:02:07.3]} 36... Rxh4 {[%clk 0:01:34.4]} 37. Rf1 {[%clk
0:02:03.3]} 37... g5 {[%clk 0:01:31]} 38. Nf2 {[%clk 0:02:01.4]} 38... g4 {[%clk
0:01:29.5]} 39. Ne4 {[%clk 0:01:58.6]} 39... Rh2 {[%clk 0:01:24.4]} 40. Rg1
{[%clk 0:01:55.5]} 40... Re2+ {[%clk 0:01:20.1]} 41. Kd4 {[%clk 0:01:53.7]}
41... Rf4 {[%clk 0:01:17.5]} 0-1

[Event "Live Chess"]
[Site "Chess.com"]
[Date "2023.05.21"]
[Round "-"]
[White "mattihelenius2"]
[Black "Leonid_Starozhilov"]
[Result "0-1"]
[WhiteElo "491"]
[BlackElo "2633"]
[TimeControl "300"]
[EndTime "5:30:33 PDT"]
[Termination "Leonid_Starozhilov won by checkmate"]

1. d4 {[%clk 0:04:48.9]} 1... Nf6 {[%clk 0:04:58.5]} 2. c4 {[%clk 0:04:37.2]}
2... g6 {[%clk 0:04:33.9]} 3. Nf3 {[%clk 0:04:26.7]} 3... d6 {[%clk 0:04:33.8]}
4. d5 {[%clk 0:04:17.8]} 4... Bg7 {[%clk 0:04:22.8]} 5. Bg5 {[%clk 0:04:10.7]}
5... O-O {[%clk 0:04:08.2]} 6. Nc3 {[%clk 0:04:04.8]} 6... e5 {[%clk 0:04:05.8]}
7. e4 {[%clk 0:03:46.4]} 7... a5 {[%clk 0:04:01.8]} 8. Bd3 {[%clk 0:03:40.4]}
8... Na6 {[%clk 0:03:58.1]} 9. O-O {[%clk 0:03:30]} 9... h6 {[%clk 0:03:56.7]}
10. Bxf6 {[%clk 0:03:12.6]} 10... Bxf6 {[%clk 0:03:54.3]} 11. Nb5 {[%clk
0:03:07.2]} 11... Bg7 {[%clk 0:03:46.9]} 12. b3 {[%clk 0:02:52.1]} 12... f5
{[%clk 0:03:42.9]} 13. g3 {[%clk 0:02:23.6]} 13... Nc5 {[%clk 0:03:39.9]} 14.
Nh4 {[%clk 0:02:21.8]} 14... fxe4 {[%clk 0:03:35.9]} 15. Be2 {[%clk 0:01:55.6]}
15... g5 {[%clk 0:03:30.3]} 16. Nf5 {[%clk 0:01:48.9]} 16... Bxf5 {[%clk
0:03:27]} 17. Rc1 {[%clk 0:01:30.4]} 17... Bh3 {[%clk 0:03:19.6]} 18. Re1 {[%clk
0:01:25.2]} 18... Qf6 {[%clk 0:03:17]} 19. Kh1 {[%clk 0:01:05.7]} 19... Qxf2
{[%clk 0:03:14.5]} 20. Rf1 {[%clk 0:00:58.3]} 20... Bg2# {[%clk 0:03:11.5]} 0-1

[Event "Live Chess"]
[Site "Chess.com"]
[Date "2023.05.21"]
[Round "-"]
[White "friarnator"]
[Black "ViktorTheCoolBoy"]
[Result "0-1"]
[WhiteElo "2018"]
[BlackElo "2477"]
[TimeControl "300"]
[EndTime "5:30:54 PDT"]
[Termination "ViktorTheCoolBoy won on time"]

1. e4 {[%clk 0:04:56.3]} 1... c5 {[%clk 0:04:58.2]} 2. Nf3 {[%clk 0:04:54.8]}
2... Nc6 {[%clk 0:04:56.5]} 3. d4 {[%clk 0:04:54.4]} 3... cxd4 {[%clk
0:04:55.1]} 4. Nxd4 {[%clk 0:04:54.3]} 4... Nf6 {[%clk 0:04:53.7]} 5. Nc3 {[%clk
0:04:53.7]} 5... e5 {[%clk 0:04:52.4]} 6. Ndb5 {[%clk 0:04:52.7]} 6... d6 {[%clk
0:04:51.7]} 7. Nd5 {[%clk 0:04:51.7]} 7... Nxd5 {[%clk 0:04:50.2]} 8. exd5
{[%clk 0:04:51.6]} 8... Nb8 {[%clk 0:04:49.6]} 9. c4 {[%clk 0:04:51.1]} 9... Be7
{[%clk 0:04:46.3]} 10. Be2 {[%clk 0:04:49]} 10... O-O {[%clk 0:04:44.9]} 11. O-O
{[%clk 0:04:47.5]} 11... Nd7 {[%clk 0:04:43.4]} 12. Kh1 {[%clk 0:04:43.6]} 12...
f5 {[%clk 0:04:42.2]} 13. f4 {[%clk 0:04:41.8]} 13... Bf6 {[%clk 0:04:39.4]} 14.
Nxd6 {[%clk 0:04:32.3]} 14... Nc5 {[%clk 0:04:36.1]} 15. Nb5 {[%clk 0:04:19.7]}
15... Ne4 {[%clk 0:04:29.6]} 16. Bf3 {[%clk 0:03:54.3]} 16... exf4 {[%clk
0:04:17.9]} 17. Bxf4 {[%clk 0:03:50.2]} 17... g5 {[%clk 0:04:16.1]} 18. Bxe4
{[%clk 0:03:46.3]} 18... fxe4 {[%clk 0:04:13.8]} 19. Bg3 {[%clk 0:03:07.3]}
19... Qe8 {[%clk 0:04:03.5]} 20. Nc7 {[%clk 0:03:00.3]} 20... Qg6 {[%clk
0:04:01]} 21. Nxa8 {[%clk 0:02:54.9]} 21... h5 {[%clk 0:03:57.5]} 22. Bd6 {[%clk
0:02:48.5]} 22... Rd8 {[%clk 0:03:55.3]} 23. c5 {[%clk 0:02:42.7]} 23... Bg4
{[%clk 0:03:53.2]} 24. Qb3 {[%clk 0:02:34]} 24... Rxa8 {[%clk 0:03:50.1]} 25.
Qxb7 {[%clk 0:02:31.6]} 25... Re8 {[%clk 0:03:48.8]} 26. c6 {[%clk 0:02:04]}
26... e3 {[%clk 0:03:47.4]} 27. Qb3 {[%clk 0:01:42.5]} 27... e2 {[%clk
0:03:45.4]} 28. Rfe1 {[%clk 0:01:38.7]} 28... h4 {[%clk 0:03:37.7]} 29. Bc5
{[%clk 0:01:24]} 29... h3 {[%clk 0:03:25]} 30. d6+ {[%clk 0:01:08.7]} 30... Kh8
{[%clk 0:03:20.7]} 31. d7 {[%clk 0:01:01.5]} 31... hxg2+ {[%clk 0:03:17.7]} 32.
Kg1 {[%clk 0:00:59.9]} 32... Rg8 {[%clk 0:02:53]} 33. Rac1 {[%clk 0:00:47.8]}
33... Qe4 {[%clk 0:02:50.7]} 34. Qe3 {[%clk 0:00:34]} 34... Qxc6 {[%clk
0:02:43.7]} 35. Bd4 {[%clk 0:00:24.5]} 35... Qe6 {[%clk 0:02:18.3]} 36. Qxe6
{[%clk 0:00:19.6]} 36... Bxd4+ {[%clk 0:02:16.1]} 37. Kxg2 {[%clk 0:00:18.6]}
37... Bxe6 {[%clk 0:02:15.2]} 38. Rxe2 {[%clk 0:00:15.5]} 38... Bxd7 {[%clk
0:02:14.1]} 39. Rd2 {[%clk 0:00:13.4]} 39... Be3 {[%clk 0:02:13.1]} 40. Rxd7
{[%clk 0:00:11.7]} 40... Bxc1 {[%clk 0:02:11]} 41. Rxa7 {[%clk 0:00:11.6]} 41...
Bxb2 {[%clk 0:02:09.8]} 42. a4 {[%clk 0:00:10.7]} 42... Rg7 {[%clk 0:02:07.6]}
43. Rxg7 {[%clk 0:00:08.5]} 43... Kxg7 {[%clk 0:02:06.3]} 44. Kg3 {[%clk
0:00:08.1]} 44... Bf6 {[%clk 0:02:00.9]} 45. Kg4 {[%clk 0:00:07.1]} 45... Kf7
{[%clk 0:02:00.3]} 46. h3 {[%clk 0:00:05.7]} 46... Ke7 {[%clk 0:01:59.4]} 47. a5
{[%clk 0:00:05.3]} 47... Kd6 {[%clk 0:01:56.9]} 48. a6 {[%clk 0:00:05.2]} 48...
Kc6 {[%clk 0:01:54.9]} 49. Kf5 {[%clk 0:00:04.5]} 49... Bd8 {[%clk 0:01:52.6]}
50. Ke6 {[%clk 0:00:03.6]} 50... Kb6 {[%clk 0:01:50.6]} 51. Kd7 {[%clk
0:00:03.5]} 51... Bf6 {[%clk 0:01:47.5]} 52. a7 {[%clk 0:00:03.4]} 52... Kxa7
{[%clk 0:01:46.2]} 53. Ke6 {[%clk 0:00:03.3]} 53... Bd8 {[%clk 0:01:44.2]} 54.
Kd7 {[%clk 0:00:02.7]} 54... Bb6 {[%clk 0:01:42.7]} 55. Ke6 {[%clk 0:00:02.1]}
55... Bf2 {[%clk 0:01:41.6]} 56. Kf5 {[%clk 0:00:01.4]} 56... Bh4 {[%clk
0:01:41.3]} 57. Kg4 {[%clk 0:00:00.8]} 57... Kb6 {[%clk 0:01:39.7]} 58. Kf3
{[%clk 0:00:00.7]} 58... Kb5 {[%clk 0:01:39.6]} 59. Kg4 {[%clk 0:00:00.6]} 59...
Kc5 {[%clk 0:01:39.5]} 60. Kf3 {[%clk 0:00:00.5]} 60... Kd4 {[%clk 0:01:39]} 61.
Kg4 {[%clk 0:00:00.4]} 61... Ke3 {[%clk 0:01:38.1]} 62. Kh5 {[%clk 0:00:00.2]}
62... Kf2 {[%clk 0:01:38]} 0-1